bitfinex/quotes_BTCUSD_20250515
["timestamp","ask_amount","ask_price","bid_price","bid_amount"]
[1747346036878,0.24706875,103320.0,103310.0,0.4]
[1747346037345,0.01935873,103310.0,103300.0,0.2323796]
[1747346037581,0.23230947,103310.0,103300.0,0.24205948]
[1747346037807,0.23230947,103310.0,103300.0,0.62874893]
[1747346038019,0.27358907,103310.0,103300.0,0.638429]
[1747346038524,0.24198907,103310.0,103300.0,0.638429]
[1747346038661,0.24198907,103310.0,103300.0,0.639429]
[1747346039244,0.05381737,103310.0,103300.0,0.64910888]
[1747346039688,0.02903721,103310.0,103300.0,0.64910888]
[1747346040078,0.03871653,103310.0,103300.0,0.64910888]
[1747346040291,0.01935798,103310.0,103300.0,0.64910888]
[1747346040517,0.02903721,103310.0,103300.0,0.64910888]
[1747346040721,0.01935798,103310.0,103300.0,0.64910888]
[1747346041164,0.0290373,103310.0,103300.0,0.26520888]
[1747346041361,0.01935798,103310.0,103300.0,0.24910888]
[1747346041566,0.01935798,103310.0,103300.0,0.64910888]
[1747346041785,0.0290373,103310.0,103300.0,0.64910888]
[1747346041991,0.01935798,103310.0,103300.0,0.64910888]
[1747346042451,0.0290373,103310.0,103300.0,0.64910888]
[1747346042695,0.01879464,103320.0,103310.0,0.25502978]
[1747346042902,0.00911673,103320.0,103310.0,0.25502978]
[1747346043138,0.00911673,103320.0,103310.0,0.47679358]
[1747346043410,0.01879464,103320.0,103310.0,0.47316394]
[1747346043608,0.04782942,103320.0,103310.0,0.49252211]
[1747346043821,0.23442962,103320.0,103310.0,0.49252201]
[1747346044017,0.24410828,103320.0,103310.0,0.26107927]
[1747346044226,0.22475236,103320.0,103310.0,0.26107927]
[1747346044636,0.21507407,103320.0,103310.0,0.25140032]
[1747346044875,0.21607407,103320.0,103310.0,0.2320414]
[1747346045067,0.20639559,103320.0,103310.0,0.6320414]
[1747346046202,0.20639559,103320.0,103310.0,0.4384493]
[1747346046658,0.19671693,103320.0,103310.0,0.4384493]
[1747346047646,0.19671693,103320.0,103310.0,0.641721]
[1747346047958,0.19671693,103320.0,103310.0,0.241721]
[1747346048618,0.19671693,103320.0,103310.0,0.4384493]
[1747346049935,0.19671693,103320.0,103310.0,0.6320414]
[1747346050147,0.19671693,103320.0,103310.0,0.64172081]
[1747346051487,0.19671693,103320.0,103310.0,0.24172081]
[1747346052055,0.19671693,103320.0,103310.0,0.64172081]
[1747346052807,0.19671693,103320.0,103310.0,0.65140004]
[1747346053010,0.20576987,103320.0,103310.0,0.65140004]
[1747346053868,0.20576987,103320.0,103310.0,0.64172081]
[1747346054590,0.20576987,103320.0,103310.0,0.65140013]
[1747346055082,0.20576987,103320.0,103310.0,0.25140013]
[1747346055543,0.20576987,103320.0,103310.0,0.65140013]
[1747346057082,0.20576987,103320.0,103310.0,0.61900013]
[1747346057296,0.20576987,103320.0,103310.0,0.4060493]
[1747346057538,0.23626987,103320.0,103310.0,0.0060493]
[1747346057960,0.42154987,103320.0,103310.0,0.0060493]
[1747346061636,0.40654987,103320.0,103310.0,0.0060493]
[1747346063866,0.42174987,103320.0,103310.0,0.0060493]
[1747346064070,0.39104987,103320.0,103310.0,0.0060493]
[1747346064423,0.20576987,103320.0,103310.0,0.0378493]
[1747346065242,0.20576987,103320.0,103310.0,0.64112091]
[1747346065439,0.20576987,103320.0,103310.0,0.4378493]
[1747346068222,0.20576987,103320.0,103310.0,0.0378493]
[1747346068639,0.20576987,103320.0,103310.0,0.4378493]
[1747346068847,0.20576987,103320.0,103310.0,0.0060493]
[1747346069492,0.20576987,103320.0,103310.0,0.4211493]
[1747346069887,0.20576987,103320.0,103310.0,0.0211493]
[1747346070616,0.20576987,103320.0,103310.0,0.0362493]
[1747346072422,0.20563567,103320.0,103310.0,0.0362493]
[1747346073798,0.20563567,103320.0,103310.0,0.239521]
[1747346074016,0.03141814,103320.0,103310.0,0.26855868]
[1747346074235,0.05077462,103320.0,103310.0,0.26855868]
[1747346074462,0.25402721,103320.0,103310.0,0.25887974]
[1747346074687,0.02174013,103320.0,103310.0,0.36586808]
[1747346074897,0.01206231,103320.0,103310.0,0.36586808]
[1747346075071,0.02174022,103320.0,103310.0,0.36586808]
[1747346075328,0.04109652,103320.0,103310.0,0.36586808]
[1747346075539,0.04109633,103320.0,103310.0,0.36586808]
[1747346076430,0.05077462,103320.0,103310.0,0.36586808]
[1747346076611,0.0604531,103320.0,103310.0,0.36586808]
[1747346076860,0.05077462,103320.0,103310.0,0.36586808]
[1747346077048,0.0604531,103320.0,103310.0,0.36586808]
[1747346077425,0.0604531,103320.0,103310.0,0.76586808]
[1747346079611,0.05077462,103320.0,103310.0,0.76586808]
[1747346079833,0.01206231,103320.0,103310.0,0.98763188]
[1747346080401,0.01206231,103320.0,103310.0,0.76586808]
[1747346080598,0.03141851,103320.0,103310.0,0.76586808]
[1747346080979,0.01206231,103320.0,103310.0,0.76586808]
[1747346081557,0.02174013,103320.0,103310.0,0.76586808]
[1747346083485,0.03141804,103320.0,103310.0,0.76586808]
[1747346083844,0.04109614,103320.0,103310.0,0.76586808]
[1747346087152,0.0321774,103320.0,103310.0,0.76586808]
[1747346088248,0.04185578,103320.0,103310.0,0.76586808]
[1747346089440,0.05153426,103320.0,103310.0,0.76586808]
[1747346093135,0.04185578,103320.0,103310.0,0.76586808]
[1747346098018,0.0321774,103320.0,103310.0,0.76586808]
[1747346102161,0.04185569,103320.0,103310.0,0.76586808]
[1747346102906,0.00314357,103320.0,103310.0,0.76586808]
[1747346103120,0.01220907,103320.0,103310.0,0.76586808]
[1747346113847,0.01220907,103320.0,103310.0,0.75981878]
[1747346114104,0.01220907,103320.0,103310.0,0.76586724]
[1747346122115,0.01220907,103320.0,103310.0,0.98763104]
[1747346123115,0.01220907,103320.0,103310.0,0.76586724]
[1747346129185,0.01220907,103320.0,103310.0,0.76586721]
[1747346130845,0.01220907,103320.0,103310.0,0.98763101]
[1747346132298,0.00314357,103320.0,103310.0,0.98763101]
[1747346134971,0.00314357,103320.0,103310.0,1.17247101]
[1747346138035,0.00314357,103320.0,103310.0,0.95070721]
[1747346138305,0.00314357,103320.0,103310.0,1.17247101]
[1747346143002,0.00314357,103320.0,103310.0,0.95070721]
[1747346143222,0.00314357,103320.0,103310.0,1.17247101]
[1747346143427,0.01282139,103320.0,103310.0,1.35723101]
[1747346143633,0.00314357,103320.0,103310.0,1.35723101]
[1747346153549,0.00314357,103320.0,103310.0,1.17243101]
[1747346153758,0.00314357,103320.0,103310.0,1.35715101]
[1747346168097,0.02249967,103320.0,103310.0,0.76586721]
[1747346168307,0.02249949,103320.0,103310.0,0.95066721]
[1747346168525,0.02249949,103320.0,103310.0,0.62867896]
[1747346168526,0.22575161,103320.0,103310.0,0.62867896]
[1747346168735,0.03217825,103320.0,103310.0,0.64803713]
[1747346168978,0.03217825,103320.0,103310.0,0.64803647]
[1747346169149,0.04124899,103320.0,103310.0,0.64803647]
[1747346169767,0.03157051,103320.0,103310.0,0.64803647]
[1747346170555,0.24450092,103320.0,103310.0,0.61899936]
[1747346170745,0.24450092,103320.0,103310.0,0.62867849]
[1747346170936,0.25417958,103320.0,103310.0,0.62867849]
[1747346171150,0.25417958,103320.0,103310.0,0.63835753]
[1747346171357,0.24450157,103320.0,103310.0,0.62867859]
[1747346171565,0.05092821,103320.0,103310.0,0.23835753]
[1747346171767,0.04185747,103320.0,103310.0,0.23835753]
[1747346171971,0.03217881,103320.0,103310.0,0.23835753]
[1747346172176,0.03217881,103320.0,103310.0,0.63835753]
[1747346172378,0.02250024,103320.0,103310.0,0.63835753]
[1747346173680,0.02250024,103320.0,103310.0,0.64818309]
[1747346174118,0.0315676,103320.0,103310.0,0.64818309]
[1747346175199,0.0315676,103320.0,103310.0,0.24818309]
[1747346175609,0.0315675,103320.0,103310.0,0.64818309]
[1747346177042,0.03156703,103320.0,103310.0,0.64818309]
[1747346178222,0.04124532,103320.0,103310.0,0.64818309]
[1747346178876,0.04124532,103320.0,103310.0,0.24818309]
[1747346179294,0.0509238,103320.0,103310.0,0.64818309]
[1747346179486,0.03156703,103320.0,103310.0,0.64818309]
[1747346180970,0.04124541,103320.0,103310.0,0.64818309]
[1747346181177,0.03156703,103320.0,103310.0,0.64818309]
[1747346182289,0.03156703,103320.0,103310.0,0.24818309]
[1747346182817,0.03156703,103320.0,103310.0,0.64818309]
[1747346183225,0.03156703,103320.0,103310.0,0.68078309]
[1747346183703,0.04124541,103320.0,103310.0,0.68078309]
[1747346183908,0.03156703,103320.0,103310.0,0.68078309]
[1747346184293,0.04124541,103320.0,103310.0,0.68078309]
[1747346184500,0.03156703,103320.0,103310.0,0.68078309]
[1747346184708,0.02188884,103320.0,103310.0,0.68078309]
[1747346185081,0.05092333,103320.0,103310.0,0.68078309]
[1747346185287,0.02249949,103320.0,103310.0,0.68078309]
[1747346185490,0.03217759,103320.0,103310.0,0.68078309]
[1747346185689,0.03217759,103320.0,103310.0,0.28078309]
[1747346186259,0.01282148,103320.0,103310.0,0.90254689]
[1747346186697,0.00314357,103320.0,103310.0,0.90254689]
[1747346187058,0.01282139,103320.0,103310.0,0.90254689]
[1747346187453,0.0224993,103320.0,103310.0,0.90254689]
[1747346188215,0.0315606,103320.0,103310.0,0.90254689]
[1747346188529,0.01220487,103320.0,103310.0,0.90254689]
[1747346188946,0.00314357,103320.0,103310.0,1.40614009]
[1747346189167,0.00314357,103320.0,103310.0,1.74614009]
[1747346190005,0.00214357,103320.0,103310.0,1.74614009]
[1747346190207,0.00014357,103320.0,103310.0,1.74614009]
[1747346190458,0.00014357,103320.0,103310.0,1.74714009]
[1747346195043,0.00014357,103320.0,103310.0,1.52537629]
[1747346195270,0.00014357,103320.0,103310.0,1.34085629]
[1747346195471,0.00014357,103320.0,103310.0,1.52545629]
[1747346195678,0.00014357,103320.0,103310.0,1.18545629]
[1747346195679,0.02917815,103320.0,103310.0,1.18545629]
[1747346196050,0.23242998,103320.0,103310.0,1.00085648]
[1747346196249,0.23242998,103320.0,103310.0,1.19513542]
[1747346196250,0.03885644,103320.0,103310.0,1.19513542]
[1747346196448,0.2324298,103320.0,103310.0,1.19513542]
[1747346196767,0.24210837,103320.0,103310.0,1.19513542]
[1747346196970,0.04853501,103320.0,103310.0,1.19513542]
[1747346197336,0.01949958,103320.0,103310.0,1.19513542]
[1747346197540,0.03885606,103320.0,103310.0,1.19513542]
[1747346198559,0.04853454,103320.0,103310.0,1.19513542]
[1747346198970,0.03885606,103320.0,103310.0,1.19513542]
[1747346200467,0.04853454,103320.0,103310.0,1.19513542]
[1747346200672,0.03885606,103320.0,103310.0,1.19513542]
[1747346200884,0.04853454,103320.0,103310.0,1.19513542]
[1747346204061,0.04853454,103320.0,103310.0,1.19513546]
[1747346207936,0.04853444,103320.0,103310.0,1.19513546]
[1747346212137,0.04853444,103320.0,103310.0,1.1853099]
[1747346213880,0.04853444,103320.0,103310.0,1.19486486]
[1747346215539,0.03885606,103320.0,103310.0,1.19486486]
[1747346215743,0.03885606,103320.0,103310.0,1.1853099]
[1747346218508,0.03885606,103320.0,103310.0,1.19483577]
[1747346218917,0.04853444,103320.0,103310.0,1.19483577]
[1747346224690,0.05755554,103320.0,103310.0,1.19483577]
[1747346224896,0.05755554,103320.0,103310.0,0.64276644]
[1747346224897,0.23177327,103320.0,103310.0,0.64276644]
[1747346225110,0.22209498,103320.0,103310.0,0.40704847]
[1747346225330,0.25319498,103320.0,103310.0,0.20064057]
[1747346225478,0.23799498,103320.0,103310.0,0.00704847]
[1747346225679,0.23799498,103320.0,103310.0,0.40704847]
[1747346225884,0.23799498,103320.0,103310.0,0.41572736]
[1747346226108,0.22209498,103320.0,103310.0,0.41572736]
[1747346226304,0.22209498,103320.0,103310.0,0.40604847]
[1747346226305,0.25419498,103320.0,103310.0,0.40604847]
[1747346226893,0.25619498,103320.0,103310.0,0.40604847]
[1747346227093,0.25619498,103320.0,103310.0,0.00604847]
[1747346227747,0.34951589,103320.0,103310.0,0.00604847]
[1747346228148,0.25619498,103320.0,103310.0,0.00604847]
[1747346230523,0.44043498,103320.0,103310.0,0.00604847]
[1747346230728,0.20327161,103310.0,103300.0,0.24407053]
[1747346231151,0.22197203,103310.0,103300.0,0.65980032]
[1747346231809,0.23165116,103310.0,103300.0,0.66948048]
[1747346232021,0.23165116,103310.0,103300.0,0.67048048]
[1747346233071,0.23165116,103310.0,103300.0,0.66080032]
[1747346233291,0.23165116,103310.0,103300.0,0.64143971]
[1747346233698,0.23165116,103310.0,103300.0,0.65112006]
[1747346233926,0.23165116,103310.0,103300.0,0.66080032]
[1747346234137,0.23165116,103310.0,103300.0,0.26080032]
[1747346234677,0.23165116,103310.0,103300.0,0.66080032]
[1747346236649,0.23365116,103310.0,103300.0,0.65980032]
[1747346236845,0.23465116,103310.0,103300.0,0.65980032]
[1747346237613,0.23465116,103310.0,103300.0,0.25980032]
[1747346238038,0.23465116,103310.0,103300.0,0.65980032]
[1747346239310,0.23465116,103310.0,103300.0,0.65375079]
[1747346239488,0.23465116,103310.0,103300.0,0.65980037]
[1747346241135,0.23465116,103310.0,103300.0,0.25980037]
[1747346241697,0.23465116,103310.0,103300.0,0.65980037]
[1747346241874,0.23465116,103310.0,103300.0,0.65012011]
[1747346242076,0.22497203,103310.0,103300.0,0.65012011]
[1747346242483,0.22497203,103310.0,103300.0,0.65980037]
[1747346244801,0.22497203,103310.0,103300.0,0.25980037]
[1747346245179,0.22497203,103310.0,103300.0,0.65980037]
[1747346246021,0.22497203,103310.0,103300.0,0.65012011]
[1747346246233,0.21529271,103310.0,103300.0,0.43714958]
[1747346246405,0.21529271,103310.0,103300.0,0.03714958]
[1747346246969,0.21529271,103310.0,103300.0,0.43714958]
[1747346247423,0.21529271,103310.0,103300.0,0.00604958]
[1747346247630,0.21529271,103310.0,103300.0,0.02114958]
[1747346248074,0.21529271,103310.0,103300.0,0.42114958]
[1747346248446,0.21529271,103310.0,103300.0,0.43754958]
[1747346251088,0.21529271,103310.0,103300.0,0.03754958]
[1747346251490,0.21529271,103310.0,103300.0,0.43754958]
[1747346254439,0.29990205,103310.0,103300.0,0.00604958]
[1747346256324,0.29990205,103310.0,103300.0,0.03734958]
[1747346257200,0.21529271,103310.0,103300.0,0.00604958]
[1747346258550,0.21529271,103310.0,103300.0,0.03834958]
[1747346260823,0.21529271,103310.0,103300.0,0.02224958]
[1747346261620,0.21529271,103310.0,103300.0,0.03834958]
[1747346263608,0.21529271,103310.0,103300.0,0.00604958]
[1747346263810,0.31260211,103310.0,103300.0,0.00604958]
[1747346264225,0.31260211,103310.0,103300.0,0.02234958]
[1747346264631,0.21529271,103310.0,103300.0,0.02234958]
[1747346265693,0.21529271,103310.0,103300.0,0.03854958]
[1747346270651,0.39929271,103310.0,103300.0,0.03854958]
[1747346281394,0.49660211,103310.0,103300.0,0.03854958]
[1747346282340,0.49660211,103310.0,103300.0,0.0325]
[1747346282695,0.48758101,103310.0,103300.0,0.0325]
[1747346283232,0.49613989,103310.0,103300.0,0.03855011]
[1747346288333,0.40851009,103310.0,103300.0,0.03855011]
[1747346288555,0.22451009,103310.0,103300.0,0.03855011]
[1747346288740,0.40839009,103310.0,103300.0,0.03855011]
[1747346293290,0.40835009,103310.0,103300.0,0.03855011]
[1747346313781,0.50565949,103310.0,103300.0,0.03855011]
[1747346314006,1.16473269,103310.0,103300.0,0.03855011]
[1747346314226,1.17927354,103310.0,103300.0,0.00605011]
[1747346314450,0.20329119,103300.0,103290.0,0.0315]
[1747346314673,0.42505499,103300.0,103290.0,0.0315]
[1747346315282,0.77361387,103300.0,103290.0,0.03755085]
[1747346315532,0.55185007,103300.0,103290.0,0.03755085]
[1747346316788,0.77361387,103300.0,103290.0,0.03755085]
[1747346317311,0.77761387,103300.0,103290.0,0.0315]
[1747346318808,1.05876327,103300.0,103290.0,0.0315]
[1747346319028,1.37783647,103300.0,103290.0,0.0315]
[1747346319437,1.15607267,103300.0,103290.0,0.0315]
[1747346319690,1.37783647,103300.0,103290.0,0.0315]
[1747346320107,1.15607267,103300.0,103290.0,0.0315]
[1747346322482,1.37783647,103300.0,103290.0,0.0315]
[1747346322894,1.15607267,103300.0,103290.0,0.0315]
[1747346323514,1.05876327,103300.0,103290.0,0.0315]
[1747346324967,1.07330412,103300.0,103290.0,0.0315]
[1747346327791,1.10237112,103300.0,103290.0,0.0315]
[1747346328313,6.16214004,103300.0,103290.0,0.0315]
[1747346328530,0.22271572,103270.0,103260.0,0.4]
[1747346328746,0.21303312,103270.0,103260.0,0.4]
[1747346329189,0.96941572,103270.0,103260.0,0.03655212]
[1747346329643,0.99849072,103270.0,103260.0,0.0305]
[1747346329858,0.90118132,103270.0,103260.0,0.03059272]
[1747346330300,0.91572217,103270.0,103260.0,0.03059272]
[1747346330871,0.91972217,103270.0,103260.0,0.03059272]
[1747346331355,6.00404997,103270.0,103260.0,9.272e-05]
[1747346331560,6.12795937,103270.0,103260.0,9.272e-05]
[1747346331764,6.14095937,103270.0,103260.0,9.272e-05]
[1747346332056,6.13095937,103270.0,103260.0,9.272e-05]
[1747346332482,6.12795937,103270.0,103260.0,9.272e-05]
[1747346332726,6.14695937,103270.0,103260.0,0.00109272]
[1747346333156,6.14295937,103270.0,103260.0,0.00109272]
[1747346333362,6.16095937,103270.0,103260.0,0.00209272]
[1747346337852,0.55309503,103240.0,103230.0,0.0318]
[1747346338073,1.23948823,103240.0,103230.0,0.03194361]
[1747346338537,1.46125203,103240.0,103230.0,0.03194361]
[1747346338754,1.57310228,103240.0,103230.0,0.03194361]
[1747346339194,6.41966628,103240.0,103230.0,0.00014361]
[1747346340042,6.42066628,103240.0,103230.0,0.00014361]
[1747346340474,6.42166628,103240.0,103230.0,0.00014361]
[1747346340680,6.42166628,103240.0,103220.0,0.0308]
[1747346340681,0.21796988,103230.0,103220.0,0.0308]
[1747346340889,0.21317762,103200.0,103190.0,4e-05]
[1747346341096,0.54309542,103220.0,103210.0,0.22284613]
[1747346341304,0.93270369,103220.0,103210.0,0.22284623]
[1747346341509,0.56487056,103220.0,103210.0,0.27302315]
[1747346341735,0.76832006,103220.0,103210.0,0.27302334]
[1747346341945,0.75863249,103220.0,103210.0,0.25364623]
[1747346342152,0.75863249,103220.0,103210.0,0.26333483]
[1747346342420,0.57251249,103220.0,103210.0,0.26333483]
[1747346342616,0.75859249,103220.0,103210.0,0.25364623]
[1747346342831,0.74890473,103220.0,103210.0,0.24395753]
[1747346343219,0.74990473,103220.0,103210.0,0.24395753]
[1747346344149,0.75106473,103220.0,103210.0,0.24695753]
[1747346344791,0.76554018,103220.0,103210.0,0.64695753]
[1747346345675,0.75585233,103220.0,103210.0,0.64695753]
[1747346345860,0.74616438,103220.0,103210.0,0.4338]
[1747346347321,0.55992438,103220.0,103210.0,0.4338]
[1747346347616,0.55992438,103220.0,103210.0,0.23726865]
[1747346348081,0.01647545,103220.0,103210.0,0.46872124]
[1747346348293,0.002,103220.0,103210.0,0.88809816]
[1747346348514,0.002,103220.0,103210.0,0.98540756]
[1747346348744,0.40651988,103250.0,103240.0,0.24399522]
[1747346348745,0.58303402,103250.0,103240.0,0.24399522]
[1747346348964,0.59271906,103250.0,103240.0,0.24399522]
[1747346349184,0.59271906,103250.0,103240.0,0.0309]
[1747346349185,0.57334964,103250.0,103240.0,0.0309]
[1747346350499,0.57434964,103250.0,103240.0,0.0339]
[1747346351511,0.57534964,103250.0,103240.0,0.03694]
[1747346351958,0.67265904,103250.0,103240.0,0.03694]
[1747346356576,0.30269904,103250.0,103240.0,0.23066336]
[1747346356775,0.48849904,103250.0,103240.0,0.24034943]
[1747346356993,0.478814,103250.0,103240.0,0.03694]
[1747346359297,0.3813046,103250.0,103240.0,0.24640305]
[1747346359500,0.002,103250.0,103240.0,0.24640305]
[1747346359702,0.002,103250.0,103240.0,0.59453362]
[1747346359904,0.002,103250.0,103240.0,0.81629742]
[1747346360286,0.03873143,103270.0,103260.0,0.22273757]
[1747346360673,0.23254201,103270.0,103260.0,0.24950747]
[1747346360844,0.23254201,103270.0,103260.0,0.23982356]
[1747346360845,0.2228595,103270.0,103260.0,0.23982356]
[1747346361050,0.2228595,103270.0,103260.0,0.24950766]
[1747346361464,0.00982619,103270.0,103260.0,0.2688752]
[1747346361692,0.23354239,103270.0,103260.0,0.2698752]
[1747346361913,0.24322574,103270.0,103260.0,0.26019157]
[1747346362143,0.23354305,103270.0,103260.0,0.26019157]
[1747346362598,0.23354305,103270.0,103260.0,0.66987539]
[1747346363258,0.22386026,103270.0,103260.0,0.66987539]
[1747346365529,0.03019318,103270.0,103260.0,0.27955902]
[1747346365915,0.02050983,103270.0,103260.0,0.27955902]
[1747346366133,0.02050983,103270.0,103260.0,0.67350549]
[1747346367891,0.01082657,103270.0,103260.0,0.67350549]
[1747346368097,0.03019252,103270.0,103260.0,0.67350549]
[1747346368531,0.02050936,103270.0,103260.0,0.67350549]
[1747346368754,0.0011435,103270.0,103260.0,0.67350549]
[1747346368961,0.01082619,103270.0,103260.0,1.10840125]
[1747346369214,0.02050907,103270.0,103260.0,0.71445276]
[1747346369424,0.02050907,103270.0,103260.0,0.3768664]
[1747346369634,0.02050907,103270.0,103260.0,0.7768664]
[1747346369864,0.02050916,103270.0,103260.0,0.7768664]
[1747346370069,0.02050907,103270.0,103260.0,0.7788664]
[1747346370497,0.01950907,103270.0,103260.0,0.7778664]
[1747346370915,0.02050907,103270.0,103260.0,0.7798664]
[1747346372560,0.02050907,103270.0,103260.0,0.3798664]
[1747346373064,0.02050907,103270.0,103260.0,0.7798664]
[1747346374199,0.02050907,103270.0,103260.0,1.11745276]
[1747346374200,0.0011435,103270.0,103260.0,1.11745276]
[1747346374383,0.01082601,103270.0,103260.0,1.11745276]
[1747346374580,0.0011435,103270.0,103260.0,1.11745276]
[1747346375381,0.0011435,103270.0,103260.0,1.11545276]
[1747346375801,0.0011435,103270.0,103260.0,1.11645276]
[1747346376370,0.0001435,103270.0,103260.0,1.11645276]
[1747346376585,0.0011435,103270.0,103260.0,1.11945276]
[1747346376790,0.0011435,103270.0,103260.0,1.45703912]
[1747346378260,0.0001435,103270.0,103260.0,1.63875912]
[1747346378668,0.0001435,103270.0,103260.0,1.64175912]
[1747346379096,0.0001435,103270.0,103260.0,1.63875912]
[1747346379306,0.0001435,103270.0,103260.0,1.64175912]
[1747346379974,0.0001435,103270.0,103260.0,1.99629997]
[1747346380194,0.10649232,103310.0,103300.0,0.25305132]
[1747346380460,0.30990741,103310.0,103300.0,0.24337144]
[1747346380668,0.30022865,103310.0,103300.0,0.24337144]
[1747346380869,0.2905498,103310.0,103300.0,0.64337144]
[1747346381743,0.2905498,103310.0,103300.0,0.64337163]
[1747346381965,0.28087067,103310.0,103300.0,0.64337163]
[1747346382180,0.27119126,103310.0,103300.0,0.64337163]
[1747346382406,0.27419126,103310.0,103300.0,0.64337163]
[1747346382796,0.02650212,103310.0,103300.0,0.66273167]
[1747346383869,0.02650212,103310.0,103300.0,0.26273167]
[1747346384362,0.22009422,103310.0,103300.0,0.26273167]
[1747346384571,0.22977382,103310.0,103300.0,0.66273176]
[1747346384985,0.22977382,103310.0,103300.0,0.67219259]
[1747346386615,0.22977382,103310.0,103300.0,0.64315211]
[1747346386849,0.22977382,103310.0,103300.0,0.65283237]
[1747346387061,0.22977382,103310.0,103300.0,0.6721925]
[1747346387520,0.22977382,103310.0,103300.0,0.2721925]
[1747346387980,0.22977382,103310.0,103300.0,0.6721925]
[1747346388807,0.22977382,103310.0,103300.0,0.67824207]
[1747346389993,0.22977382,103310.0,103300.0,0.67824217]
[1747346390804,0.22977382,103310.0,103300.0,0.27824217]
[1747346391227,0.22977382,103310.0,103300.0,0.28792214]
[1747346391508,0.22977382,103310.0,103300.0,0.67824217]
[1747346392263,0.22977382,103310.0,103300.0,0.6685621]
[1747346392509,0.22977382,103310.0,103300.0,0.67824217]
[1747346392709,0.22977382,103310.0,103300.0,0.68792214]
[1747346392936,0.22977382,103310.0,103300.0,0.67824217]
[1747346393293,0.22977382,103310.0,103300.0,0.68792214]
[1747346393550,0.22977382,103310.0,103300.0,0.67846131]
[1747346394389,0.22977382,103310.0,103300.0,0.27846131]
[1747346394810,0.22977382,103310.0,103300.0,0.67846131]
[1747346396797,0.23847078,103310.0,103300.0,0.67846131]
[1747346397805,0.23847078,103310.0,103300.0,0.27846131]
[1747346398384,0.03519908,103310.0,103300.0,0.67846131]
[1747346398591,0.23847069,103310.0,103300.0,0.67846131]
[1747346398992,0.24815029,103310.0,103300.0,0.67846131]
[1747346400349,0.01584054,103310.0,103300.0,0.67846131]
[1747346400555,0.23847003,103310.0,103300.0,0.64942139]
[1747346400797,0.01584054,103310.0,103300.0,0.66878143]
[1747346400993,0.04487822,103310.0,103300.0,0.66878125]
[1747346401430,0.23847098,103310.0,103300.0,0.23974085]
[1747346401645,0.22479175,103310.0,103300.0,0.24942111]
[1747346401861,0.22179175,103310.0,103300.0,0.6494212]
[1747346402074,0.22279175,103310.0,103300.0,0.63974085]
[1747346402290,0.22379175,103310.0,103300.0,0.63974085]
[1747346402508,0.22379175,103310.0,103300.0,0.02134957]
[1747346402771,0.33961702,103310.0,103300.0,0.00604957]
[1747346402988,1.05078164,103310.0,103300.0,0.00604957]
[1747346403699,0.21299188,103290.0,103280.0,0.4322]
[1747346403919,0.39679188,103290.0,103280.0,0.4322]
[1747346404580,0.39679188,103290.0,103280.0,0.0382509]
[1747346404794,0.40548884,103290.0,103280.0,0.0382509]
[1747346405789,0.40548884,103290.0,103280.0,0.0060509]
[1747346406214,0.74548884,103290.0,103280.0,0.0070509]
[1747346406430,1.29312101,103290.0,103280.0,0.0070509]
[1747346406892,1.29312101,103290.0,103280.0,0.002]
[1747346407588,1.295882,103290.0,103280.0,0.001]
[1747346407807,0.21303285,103270.0,103260.0,0.64395305]
[1747346408042,0.38751034,103270.0,103260.0,0.63426914]
[1747346408320,0.38751034,103270.0,103260.0,0.65000513]
[1747346408734,0.38751034,103270.0,103260.0,0.65968914]
[1747346409084,0.20335034,103270.0,103260.0,0.66068914]
[1747346409290,0.21328873,103270.0,103260.0,0.67037249]
[1747346409496,0.02904873,103270.0,103260.0,0.67037249]
[1747346409702,0.22293199,103270.0,103260.0,0.67037249]
[1747346409897,0.22293199,103270.0,103260.0,0.26068886]
[1747346410106,0.22293199,103270.0,103260.0,0.28205631]
[1747346410107,0.1842,103270.0,103260.0,0.28205631]
[1747346410335,0.1938826,103270.0,103260.0,0.28205631]
[1747346410535,0.40681585,103280.0,103270.0,0.253616]
[1747346410732,0.41649826,103280.0,103270.0,0.2439335]
[1747346411210,0.39713428,103280.0,103270.0,0.2439335]
[1747346411627,0.8223101,103280.0,103270.0,0.0309]
[1747346411772,0.20335024,103270.0,103260.0,0.0329]
[1747346411980,0.21303331,103270.0,103260.0,0.23426985]
[1747346412178,0.21303331,103270.0,103260.0,0.25000606]
[1747346412659,0.21303331,103270.0,103260.0,0.24395414]
[1747346412878,0.21303331,103270.0,103260.0,0.24595414]
[1747346413282,0.21303331,103270.0,103260.0,0.23627013]
[1747346413493,0.20335024,103270.0,103260.0,0.24595432]
[1747346413716,0.20335024,103270.0,103260.0,0.26532224]
[1747346413926,0.21303312,103270.0,103260.0,0.27500587]
[1747346414150,0.22271647,103270.0,103260.0,0.26632224]
[1747346415059,0.22271647,103270.0,103260.0,0.27600596]
[1747346415261,0.22271647,103270.0,103260.0,0.67600596]
[1747346416641,0.22271647,103270.0,103260.0,0.66632224]
[1747346417437,0.00968194,103280.0,103270.0,0.05016566]
[1747346417638,0.00968194,103280.0,103270.0,0.25351619]
[1747346417953,0.53624082,103290.0,103280.0,0.26457667]
[1747346418125,0.74923353,103290.0,103280.0,0.04188241]
[1747346418331,0.00967997,103300.0,103290.0,0.25487288]
[1747346418498,0.36904039,103300.0,103290.0,0.24519215]
[1747346418765,0.75881167,103300.0,103290.0,0.0322]
[1747346418953,0.73945163,103300.0,103290.0,0.0322]
[1747346419129,0.39945163,103300.0,103290.0,0.0322]
[1747346419540,0.22997163,103300.0,103290.0,0.22682958]
[1747346419742,0.41637163,103300.0,103290.0,0.24619188]
[1747346419949,0.41645163,103300.0,103290.0,0.23651087]
[1747346420177,0.41645163,103300.0,103290.0,0.23651105]
[1747346420379,0.03636042,103300.0,103290.0,0.23651105]
[1747346420577,0.22284042,103300.0,103290.0,0.26555435]
[1747346420776,0.4261317,103300.0,103290.0,0.25587353]
[1747346421038,0.41645163,103300.0,103290.0,0.24619243]
[1747346421241,0.03636042,103300.0,103290.0,0.25587362]
[1747346421438,0.23248012,103300.0,103290.0,0.27523554]
[1747346421798,0.45477131,103300.0,103290.0,0.26755472]
[1747346421997,0.25148012,103300.0,103290.0,0.27723554]
[1747346422420,0.036,103300.0,103290.0,0.67723554]
[1747346422842,0.04567979,103300.0,103290.0,0.67723554]
[1747346423017,0.05535986,103300.0,103290.0,0.67723554]
[1747346423230,0.06504012,103300.0,103290.0,0.67723554]
[1747346423434,0.017,103300.0,103290.0,0.67423554]
[1747346423614,1.07682054,103310.0,103300.0,0.25525161]
[1747346423815,1.07682054,103310.0,103300.0,0.26493149]
[1747346423816,0.19614271,103310.0,103300.0,0.26493149]
[1747346424043,0.21550097,103310.0,103300.0,0.24557164]
[1747346424197,0.22518048,103310.0,103300.0,0.24557164]
[1747346424391,0.20582156,103310.0,103300.0,0.26493168]
[1747346424592,0.40909307,103310.0,103300.0,0.24557164]
[1747346424799,0.01282271,103310.0,103300.0,0.26493186]
[1747346424998,0.00314358,103310.0,103300.0,0.26493186]
[1747346425206,0.03218061,103310.0,103300.0,0.26493186]
[1747346425473,0.04186002,103310.0,103300.0,0.26493186]
[1747346425633,0.04386002,103310.0,103300.0,0.26493186]